[Event "*** Titled Tuesday Blitz"]
[Site "Chess.com"]
[Date "2021.04.27"]
[Round "2"]
[White "enriquetejedor"]
[Black "GM_dmitrij"]
[Result "0-1"]
[WhiteElo "2599"]
[BlackElo "2955"]
[TimeControl "180+1"]
[EndTime "10:18:42 PDT"]
[Termination "GM_dmitrij won by checkmate"]

1. d4 {[%clk 0:02:56.7]} 1... Nf6 {[%clk 0:02:57.5]} 2. Bg5 {[%clk 0:02:54.6]}
2... Ne4 {[%clk 0:02:56.3]} 3. Bf4 {[%clk 0:02:54.2]} 3... Nc6 {[%clk 0:02:56]}
4. d5 {[%clk 0:02:46.2]} 4... e5 {[%clk 0:02:55.4]} 5. Bc1 {[%clk 0:02:35.7]}
5... Ne7 {[%clk 0:02:55]} 6. g3 {[%clk 0:02:19.2]} 6... f5 {[%clk 0:02:45.7]} 7.
Bg2 {[%clk 0:02:01.9]} 7... d6 {[%clk 0:02:45.4]} 8. c4 {[%clk 0:01:48.7]} 8...
g6 {[%clk 0:02:42.7]} 9. f3 {[%clk 0:01:44.6]} 9... Nf6 {[%clk 0:02:42.6]} 10.
Nc3 {[%clk 0:01:42.8]} 10... Bg7 {[%clk 0:02:39]} 11. e4 {[%clk 0:01:43.3]}
11... O-O {[%clk 0:02:38.6]} 12. Nge2 {[%clk 0:01:43.2]} 12... c6 {[%clk
0:02:32.7]} 13. O-O {[%clk 0:01:40.6]} 13... cxd5 {[%clk 0:02:31.8]} 14. exd5
{[%clk 0:01:13.7]} 14... Qb6+ {[%clk 0:02:20.3]} 15. Kh1 {[%clk 0:01:13.3]}
15... Bd7 {[%clk 0:02:20.3]} 16. Qd3 {[%clk 0:01:09.4]} 16... Rac8 {[%clk
0:02:16.2]} 17. Be3 {[%clk 0:01:02.4]} 17... Qxb2 {[%clk 0:01:50.9]} 18. Rfb1
{[%clk 0:00:38.4]} 18... Qa3 {[%clk 0:01:50.4]} 19. Rxb7 {[%clk 0:00:36.8]}
19... Qa6 {[%clk 0:01:50.8]} 20. Rb4 {[%clk 0:00:34.8]} 20... e4 {[%clk
0:01:46.6]} 21. Qd2 {[%clk 0:00:22.7]} 21... exf3 {[%clk 0:01:38.7]} 22. Bxf3
{[%clk 0:00:23.6]} 22... Rxc4 {[%clk 0:01:38.6]} 23. Rxc4 {[%clk 0:00:24.3]}
23... Qxc4 {[%clk 0:01:39.3]} 24. Bxa7 {[%clk 0:00:23.2]} 24... Ne4 {[%clk
0:01:22.7]} 25. Bxe4 {[%clk 0:00:22.9]} 25... fxe4 {[%clk 0:01:23.6]} 26. Bd4
{[%clk 0:00:23.4]} 26... Qd3 {[%clk 0:01:02.6]} 27. Qxd3 {[%clk 0:00:14.1]}
27... exd3 {[%clk 0:01:03.5]} 28. Bxg7 {[%clk 0:00:14.5]} 28... Kxg7 {[%clk
0:01:04.4]} 29. Nf4 {[%clk 0:00:12.9]} 29... d2 {[%clk 0:00:59.4]} 30. Rd1
{[%clk 0:00:10.5]} 30... Rc8 {[%clk 0:00:48.5]} 31. Nfe2 {[%clk 0:00:09.7]}
31... Nf5 {[%clk 0:00:16.7]} 32. Rxd2 {[%clk 0:00:05.3]} 32... Ne3 {[%clk
0:00:17.6]} 33. Kg1 {[%clk 0:00:02.4]} 33... Rf8 {[%clk 0:00:17.6]} 34. Nf4
{[%clk 0:00:02.6]} 34... g5 {[%clk 0:00:17.1]} 35. Ne4 {[%clk 0:00:01.9]} 35...
gxf4 {[%clk 0:00:16.5]} 36. Nxd6 {[%clk 0:00:02.1]} 36... f3 {[%clk 0:00:14.6]}
37. h3 {[%clk 0:00:02.1]} 37... Bxh3 {[%clk 0:00:14.1]} 38. Ne4 {[%clk
0:00:02.3]} 38... Ng4 {[%clk 0:00:14.2]} 39. d6 {[%clk 0:00:02.4]} 39... Re8
{[%clk 0:00:14.1]} 40. Rd4 {[%clk 0:00:01.8]} 40... f2+ {[%clk 0:00:12.5]} 41.
Nxf2 {[%clk 0:00:01.6]} 41... Re1# {[%clk 0:00:13.4]} 0-1

[Event "*** Titled Tuesday Blitz"]
[Site "Chess.com"]
[Date "2021.04.27"]
[Round "2"]
[White "CSB7"]
[Black "Karttunen"]
[Result "1-0"]
[WhiteElo "2736"]
[BlackElo "2517"]
[TimeControl "180+1"]
[EndTime "10:18:42 PDT"]
[Termination "CSB7 won on time"]

1. e4 {[%clk 0:03:00.9]} 1... c5 {[%clk 0:02:57.9]} 2. Nf3 {[%clk 0:03:00.7]}
2... Nc6 {[%clk 0:02:56.8]} 3. d4 {[%clk 0:03:00.3]} 3... cxd4 {[%clk
0:02:56.4]} 4. Nxd4 {[%clk 0:03:01.2]} 4... e5 {[%clk 0:02:55.9]} 5. Nb5 {[%clk
0:02:57]} 5... d6 {[%clk 0:02:55.7]} 6. a4 {[%clk 0:02:50.7]} 6... a6 {[%clk
0:02:33.3]} 7. N5c3 {[%clk 0:02:47.6]} 7... f5 {[%clk 0:02:32.6]} 8. Bc4 {[%clk
0:02:40.9]} 8... Nf6 {[%clk 0:02:31.2]} 9. Bg5 {[%clk 0:02:39.5]} 9... Be7
{[%clk 0:02:22.6]} 10. Bxf6 {[%clk 0:02:36.6]} 10... Bxf6 {[%clk 0:02:22]} 11.
O-O {[%clk 0:02:32.3]} 11... Nd4 {[%clk 0:01:55.1]} 12. Nd5 {[%clk 0:02:12.3]}
12... f4 {[%clk 0:01:45]} 13. c3 {[%clk 0:02:08.2]} 13... Nc6 {[%clk 0:01:43.8]}
14. Nd2 {[%clk 0:02:01]} 14... g6 {[%clk 0:01:35.6]} 15. a5 {[%clk 0:01:53.3]}
15... Kf8 {[%clk 0:01:14.8]} 16. Be2 {[%clk 0:01:24.6]} 16... Be6 {[%clk
0:01:09.4]} 17. Nc4 {[%clk 0:01:20.8]} 17... Be7 {[%clk 0:01:03]} 18. Ncb6
{[%clk 0:01:07.6]} 18... Rb8 {[%clk 0:00:57.9]} 19. Bc4 {[%clk 0:01:07.9]} 19...
Bg5 {[%clk 0:00:45.3]} 20. b4 {[%clk 0:00:43.2]} 20... Kg7 {[%clk 0:00:42.3]}
21. Qe2 {[%clk 0:00:38.2]} 21... Rf8 {[%clk 0:00:40.1]} 22. f3 {[%clk
0:00:38.2]} 22... h5 {[%clk 0:00:33.8]} 23. Rad1 {[%clk 0:00:38.1]} 23... Bh4
{[%clk 0:00:30]} 24. Rd2 {[%clk 0:00:30.9]} 24... g5 {[%clk 0:00:29.7]} 25. Nxf4
{[%clk 0:00:23.5]} 25... Bxc4 {[%clk 0:00:28.3]} 26. Nxh5+ {[%clk 0:00:23.5]}
26... Kh6 {[%clk 0:00:27.9]} 27. Nxc4 {[%clk 0:00:22.9]} 27... Kxh5 {[%clk
0:00:27.5]} 28. g3 {[%clk 0:00:23.4]} 28... Rf6 {[%clk 0:00:19.6]} 29. gxh4
{[%clk 0:00:14.8]} 29... gxh4 {[%clk 0:00:17.7]} 30. Kh1 {[%clk 0:00:13]} 30...
Kh6 {[%clk 0:00:16.1]} 31. Ne3 {[%clk 0:00:12.3]} 31... Kh7 {[%clk 0:00:12.7]}
32. Nf5 {[%clk 0:00:11.6]} 32... Qf8 {[%clk 0:00:10.5]} 33. f4 {[%clk 0:00:11]}
33... Rxf5 {[%clk 0:00:09.7]} 34. exf5 {[%clk 0:00:11]} 34... Qh6 {[%clk
0:00:05.1]} 35. f6 {[%clk 0:00:07]} 35... Rf8 {[%clk 0:00:03.1]} 36. Qe4+ {[%clk
0:00:04.9]} 36... Kh8 {[%clk 0:00:02.6]} 37. Rdf2 {[%clk 0:00:05.2]} 37... Rxf6
{[%clk 0:00:01.9]} 38. fxe5 {[%clk 0:00:05.6]} 38... Rxf2 {[%clk 0:00:01.7]} 39.
Rxf2 {[%clk 0:00:06.5]} 39... Nxe5 {[%clk 0:00:01.4]} 40. Qf4 {[%clk 0:00:06.8]}
1-0

[Event "*** Titled Tuesday Blitz"]
[Site "Chess.com"]
[Date "2021.04.27"]
[Round "2"]
[White "Witik"]
[Black "Das_Virus_2020"]
[Result "0-1"]
[WhiteElo "2706"]
[BlackElo "2522"]
[TimeControl "180+1"]
[EndTime "10:18:43 PDT"]
[Termination "Das_Virus_2020 won on time"]

1. d4 {[%clk 0:02:59]} 1... Nf6 {[%clk 0:02:59.2]} 2. c4 {[%clk 0:02:58.8]} 2...
c5 {[%clk 0:02:58.4]} 3. d5 {[%clk 0:02:58.4]} 3... b5 {[%clk 0:02:58.2]} 4. Nf3
{[%clk 0:02:58.3]} 4... b4 {[%clk 0:02:45]} 5. Nbd2 {[%clk 0:02:40]} 5... d6
{[%clk 0:02:40.4]} 6. a3 {[%clk 0:02:26.9]} 6... bxa3 {[%clk 0:02:35.7]} 7. b3
{[%clk 0:02:20.9]} 7... g6 {[%clk 0:02:11.8]} 8. Bxa3 {[%clk 0:02:20]} 8... Bg7
{[%clk 0:02:11.7]} 9. Bb2 {[%clk 0:02:02.8]} 9... O-O {[%clk 0:02:11]} 10. e4
{[%clk 0:01:55.8]} 10... Na6 {[%clk 0:02:05.5]} 11. Be2 {[%clk 0:01:07.1]} 11...
Nb4 {[%clk 0:02:03.8]} 12. O-O {[%clk 0:01:04.8]} 12... Bg4 {[%clk 0:02:00.1]}
13. Re1 {[%clk 0:00:55.8]} 13... Bxf3 {[%clk 0:01:49.7]} 14. Nxf3 {[%clk
0:00:47.2]} 14... Nxe4 {[%clk 0:01:47.2]} 15. Bxg7 {[%clk 0:00:46.8]} 15... Kxg7
{[%clk 0:01:48.1]} 16. Bf1 {[%clk 0:00:44.6]} 16... Nf6 {[%clk 0:01:43]} 17. Qd2
{[%clk 0:00:44.7]} 17... Qd7 {[%clk 0:01:31]} 18. Re3 {[%clk 0:00:43.2]} 18...
Rfe8 {[%clk 0:01:24.2]} 19. Rae1 {[%clk 0:00:42.3]} 19... a5 {[%clk 0:01:22.9]}
20. Qc3 {[%clk 0:00:28.5]} 20... a4 {[%clk 0:01:15.5]} 21. bxa4 {[%clk
0:00:27.8]} 21... Rxa4 {[%clk 0:01:14.8]} 22. h3 {[%clk 0:00:28.2]} 22... Ra7
{[%clk 0:00:59.5]} 23. Ng5 {[%clk 0:00:28.2]} 23... Kg8 {[%clk 0:00:56.1]} 24.
Be2 {[%clk 0:00:13.8]} 24... h6 {[%clk 0:00:39.4]} 25. Nf3 {[%clk 0:00:13.8]}
25... Kg7 {[%clk 0:00:37.1]} 26. Nh4 {[%clk 0:00:12.9]} 26... Qa4 {[%clk
0:00:27.5]} 27. Rg3 {[%clk 0:00:11.8]} 27... Qc2 {[%clk 0:00:24.1]} 28. Qe3
{[%clk 0:00:08.6]} 28... Qe4 {[%clk 0:00:20.3]} 29. Qc1 {[%clk 0:00:05.1]} 29...
Qxh4 {[%clk 0:00:19.4]} 30. Re3 {[%clk 0:00:04.3]} 30... Qd4 {[%clk 0:00:18.8]}
31. Bf1 {[%clk 0:00:04.8]} 31... Rea8 {[%clk 0:00:13.7]} 32. Rxe7 {[%clk
0:00:03.4]} 32... Ra1 {[%clk 0:00:13.5]} 33. Qe3 {[%clk 0:00:02.5]} 33... Rxe1
{[%clk 0:00:12.1]} 34. Qxe1 {[%clk 0:00:03.4]} 34... Nd3 {[%clk 0:00:10]} 35.
Qe6 {[%clk 0:00:03.9]} 35... Ne5 {[%clk 0:00:08.8]} 36. Qxd6 {[%clk 0:00:03.5]}
36... Ned7 {[%clk 0:00:05.2]} 37. Rxd7 {[%clk 0:00:02.7]} 37... Nxd7 {[%clk
0:00:04.9]} 38. Qxd7 {[%clk 0:00:03.3]} 38... Ra2 {[%clk 0:00:04.5]} 0-1

[Event "*** Titled Tuesday Blitz"]
[Site "Chess.com"]
[Date "2021.04.27"]
[Round "2"]
[White "InvisibleWarrior2252"]
[Black "DenLaz"]
[Result "0-1"]
[WhiteElo "2557"]
[BlackElo "2830"]
[TimeControl "180+1"]
[EndTime "10:18:44 PDT"]
[Termination "DenLaz won by resignation"]

1. e4 {[%clk 0:03:00.9]} 1... e5 {[%clk 0:02:59.7]} 2. Nf3 {[%clk 0:03:00.3]}
2... Nc6 {[%clk 0:03:00.1]} 3. Bc4 {[%clk 0:03:01.1]} 3... Bc5 {[%clk
0:02:59.7]} 4. c3 {[%clk 0:03:01.5]} 4... Nf6 {[%clk 0:03:00.1]} 5. d3 {[%clk
0:03:02.2]} 5... d6 {[%clk 0:02:59.9]} 6. h3 {[%clk 0:03:02]} 6... h6 {[%clk
0:02:59.8]} 7. Bb3 {[%clk 0:03:02.6]} 7... a6 {[%clk 0:02:58.4]} 8. Nbd2 {[%clk
0:03:02.7]} 8... O-O {[%clk 0:02:48.7]} 9. Nf1 {[%clk 0:03:02.7]} 9... Be6
{[%clk 0:02:47.7]} 10. Ng3 {[%clk 0:03:02.5]} 10... d5 {[%clk 0:02:46.5]} 11.
Qe2 {[%clk 0:03:01.3]} 11... Re8 {[%clk 0:02:44.9]} 12. Nh2 {[%clk 0:03:00.9]}
12... Qd7 {[%clk 0:02:43.4]} 13. Qf3 {[%clk 0:02:59.6]} 13... dxe4 {[%clk
0:02:07.8]} 14. dxe4 {[%clk 0:03:00.5]} 14... Nh7 {[%clk 0:02:04.9]} 15. Ng4
{[%clk 0:02:26.2]} 15... Bf8 {[%clk 0:01:56.5]} 16. Nh5 {[%clk 0:02:20.3]} 16...
Bxb3 {[%clk 0:01:48.2]} 17. axb3 {[%clk 0:02:12.7]} 17... Qe6 {[%clk 0:01:48.1]}
18. b4 {[%clk 0:02:07.2]} 18... Be7 {[%clk 0:01:22.6]} 19. Ng3 {[%clk 0:01:59]}
19... Bg5 {[%clk 0:01:21]} 20. Nf5 {[%clk 0:01:54.1]} 20... h5 {[%clk
0:01:16.4]} 21. Nge3 {[%clk 0:01:41]} 21... g6 {[%clk 0:01:15.3]} 22. h4 {[%clk
0:01:24.8]} 22... Bxe3 {[%clk 0:00:56.4]} 23. Nxe3 {[%clk 0:01:22.5]} 23... Ne7
{[%clk 0:00:56.2]} 24. g4 {[%clk 0:01:10.2]} 24... Nf6 {[%clk 0:00:49.8]} 25.
Rg1 {[%clk 0:01:06.2]} 25... Kh7 {[%clk 0:00:47.4]} 26. gxh5 {[%clk 0:00:55.2]}
26... Nxh5 {[%clk 0:00:46.1]} 27. Rg5 {[%clk 0:00:39.8]} 27... Rh8 {[%clk
0:00:42.9]} 28. Ng4 {[%clk 0:00:35.4]} 28... Nc6 {[%clk 0:00:33.4]} 29. Be3
{[%clk 0:00:34.2]} 29... Rad8 {[%clk 0:00:29.7]} 30. Rxh5+ {[%clk 0:00:22.5]}
30... gxh5 {[%clk 0:00:29.1]} 31. Nf6+ {[%clk 0:00:23.4]} 31... Kg7 {[%clk
0:00:29.5]} 32. Bg5 {[%clk 0:00:23.6]} 32... Ne7 {[%clk 0:00:23.1]} 33. Nxh5+
{[%clk 0:00:17.7]} 33... Kf8 {[%clk 0:00:22.4]} 34. Ng3 {[%clk 0:00:17.9]} 34...
Rd7 {[%clk 0:00:18.8]} 35. Kf1 {[%clk 0:00:14.7]} 35... Qh3+ {[%clk 0:00:11.1]}
36. Ke2 {[%clk 0:00:14.9]} 36... Ng6 {[%clk 0:00:11.5]} 37. Qf6 {[%clk
0:00:11.6]} 37... Qe6 {[%clk 0:00:08.9]} 38. Qf3 {[%clk 0:00:11]} 38... Nxh4
{[%clk 0:00:07.9]} 39. Bxh4 {[%clk 0:00:09.1]} 39... Rxh4 {[%clk 0:00:08.8]} 40.
Nf5 {[%clk 0:00:10]} 40... Qc4+ {[%clk 0:00:08.8]} 41. Ke1 {[%clk 0:00:07.9]}
41... Qxe4+ {[%clk 0:00:08.3]} 42. Ne3 {[%clk 0:00:08.8]} 42... Qxf3 {[%clk
0:00:07.6]} 0-1

[Event "*** Titled Tuesday Blitz"]
[Site "Chess.com"]
[Date "2021.04.27"]
[Round "2"]
[White "picturesquecheck"]
[Black "SchmakAttack"]
[Result "0-1"]
[WhiteElo "2304"]
[BlackElo "2624"]
[TimeControl "180+1"]
[EndTime "10:18:49 PDT"]
[Termination "SchmakAttack won by resignation"]

1. e4 {[%clk 0:03:00.9]} 1... e5 {[%clk 0:02:58.1]} 2. Nf3 {[%clk 0:03:00.3]}
2... Nc6 {[%clk 0:02:58.8]} 3. Bb5 {[%clk 0:03:00.2]} 3... a6 {[%clk 0:02:58.7]}
4. Ba4 {[%clk 0:03:00.1]} 4... Nf6 {[%clk 0:02:59]} 5. O-O {[%clk 0:03:00.2]}
5... Be7 {[%clk 0:02:59.5]} 6. Re1 {[%clk 0:03:00.4]} 6... b5 {[%clk 0:02:59.2]}
7. Bb3 {[%clk 0:03:00.4]} 7... d6 {[%clk 0:02:59.9]} 8. c3 {[%clk 0:03:00.1]}
8... O-O {[%clk 0:03:00.6]} 9. h3 {[%clk 0:03:00.2]} 9... Nb8 {[%clk 0:03:01.3]}
10. d4 {[%clk 0:03:00]} 10... Nbd7 {[%clk 0:03:01.9]} 11. c4 {[%clk 0:03:00.2]}
11... c6 {[%clk 0:02:51]} 12. a3 {[%clk 0:02:58.3]} 12... Bb7 {[%clk 0:02:46.7]}
13. Nc3 {[%clk 0:02:58.2]} 13... Re8 {[%clk 0:02:36.4]} 14. Be3 {[%clk
0:02:54.9]} 14... Bf8 {[%clk 0:02:15.8]} 15. d5 {[%clk 0:02:44.1]} 15... bxc4
{[%clk 0:02:05.3]} 16. Bxc4 {[%clk 0:02:43.8]} 16... cxd5 {[%clk 0:01:44.1]} 17.
exd5 {[%clk 0:02:39.9]} 17... Rc8 {[%clk 0:01:27]} 18. Ba2 {[%clk 0:02:39.6]}
18... g6 {[%clk 0:01:25.6]} 19. Rc1 {[%clk 0:02:39]} 19... Bg7 {[%clk
0:01:14.5]} 20. b4 {[%clk 0:02:33.5]} 20... Nb6 {[%clk 0:00:35.2]} 21. Bg5
{[%clk 0:02:21.7]} 21... h6 {[%clk 0:00:33.2]} 22. Bxf6 {[%clk 0:02:21.6]} 22...
Qxf6 {[%clk 0:00:30]} 23. Qe2 {[%clk 0:02:13.4]} 23... Qe7 {[%clk 0:00:26.9]}
24. Red1 {[%clk 0:02:11.2]} 24... e4 {[%clk 0:00:15.9]} 25. Nd4 {[%clk
0:02:08.8]} 25... Qe5 {[%clk 0:00:14.4]} 26. Nc6 {[%clk 0:01:30.8]} 26... Bxc6
{[%clk 0:00:12.9]} 27. dxc6 {[%clk 0:01:31]} 27... Rxc6 {[%clk 0:00:13.5]} 28.
Nb1 {[%clk 0:01:20.6]} 28... Rxc1 {[%clk 0:00:08.8]} 29. Rxc1 {[%clk 0:01:20.2]}
29... e3 {[%clk 0:00:07.2]} 30. fxe3 {[%clk 0:01:14.3]} 30... Qxe3+ {[%clk
0:00:08.1]} 31. Qxe3 {[%clk 0:01:14.1]} 31... Rxe3 {[%clk 0:00:09]} 32. Rc7
{[%clk 0:01:05.3]} 32... d5 {[%clk 0:00:08.7]} 33. a4 {[%clk 0:00:58.1]} 33...
Re2 {[%clk 0:00:05.5]} 34. a5 {[%clk 0:00:53.4]} 34... Rxa2 {[%clk 0:00:03.9]}
35. axb6 {[%clk 0:00:52.5]} 35... Bd4+ {[%clk 0:00:04.3]} 36. Kh1 {[%clk
0:00:46.6]} 36... Ra1 {[%clk 0:00:03.4]} 37. Rc1 {[%clk 0:00:40.7]} 37... Bxb6
{[%clk 0:00:03.3]} 38. Rd1 {[%clk 0:00:39.1]} 38... Kg7 {[%clk 0:00:03.4]} 39.
Nc3 {[%clk 0:00:38.9]} 39... Rxd1+ {[%clk 0:00:03]} 40. Nxd1 {[%clk 0:00:39.8]}
40... Bd4 {[%clk 0:00:03.1]} 41. g4 {[%clk 0:00:37.9]} 41... Kf6 {[%clk
0:00:03.6]} 42. Kg2 {[%clk 0:00:38.1]} 42... Ke5 {[%clk 0:00:04.3]} 43. Kf3
{[%clk 0:00:38.5]} 43... f5 {[%clk 0:00:05]} 44. Ke2 {[%clk 0:00:32.9]} 44...
Ke4 {[%clk 0:00:04.8]} 45. Kd2 {[%clk 0:00:29.8]} 45... f4 {[%clk 0:00:05.1]}
46. Ke2 {[%clk 0:00:29.5]} 46... f3+ {[%clk 0:00:05.7]} 47. Kf1 {[%clk
0:00:29.9]} 47... Kd3 {[%clk 0:00:06.1]} 48. h4 {[%clk 0:00:27.3]} 48... Kc4
{[%clk 0:00:06.1]} 49. Nf2 {[%clk 0:00:22.7]} 49... Bxf2 {[%clk 0:00:06.2]} 50.
Kxf2 {[%clk 0:00:23.6]} 50... d4 {[%clk 0:00:06.3]} 51. Kxf3 {[%clk 0:00:24.5]}
51... d3 {[%clk 0:00:06.6]} 52. Ke3 {[%clk 0:00:24.9]} 52... Kc3 {[%clk
0:00:07.3]} 53. h5 {[%clk 0:00:24.3]} 53... gxh5 {[%clk 0:00:07.1]} 54. g5
{[%clk 0:00:24.4]} 54... hxg5 {[%clk 0:00:07.1]} 0-1

[Event "*** Titled Tuesday Blitz"]
[Site "Chess.com"]
[Date "2021.04.27"]
[Round "2"]
[White "Hypercar"]
[Black "LenkaPtacnikova"]
[Result "0-1"]
[WhiteElo "2597"]
[BlackElo "2192"]
[TimeControl "180+1"]
[EndTime "10:18:49 PDT"]
[Termination "LenkaPtacnikova won by resignation"]

1. d4 {[%clk 0:03:00.9]} 1... Nf6 {[%clk 0:02:59.1]} 2. Nf3 {[%clk 0:03:00.1]}
2... e6 {[%clk 0:02:56.6]} 3. g3 {[%clk 0:03:00.3]} 3... c5 {[%clk 0:02:55.6]}
4. Bg2 {[%clk 0:03:00.7]} 4... Be7 {[%clk 0:02:54.4]} 5. O-O {[%clk 0:03:01]}
5... O-O {[%clk 0:02:54]} 6. dxc5 {[%clk 0:03:01.6]} 6... Bxc5 {[%clk 0:02:53]}
7. a3 {[%clk 0:03:02.5]} 7... d5 {[%clk 0:02:51]} 8. b4 {[%clk 0:03:03]} 8...
Be7 {[%clk 0:02:50.5]} 9. Bb2 {[%clk 0:03:03.6]} 9... Nc6 {[%clk 0:02:49.8]} 10.
Nbd2 {[%clk 0:03:03.4]} 10... b5 {[%clk 0:02:38.2]} 11. c3 {[%clk 0:02:55.4]}
11... Bb7 {[%clk 0:01:59.4]} 12. a4 {[%clk 0:02:54.4]} 12... a6 {[%clk
0:01:59.2]} 13. Ne1 {[%clk 0:02:50.6]} 13... Ne5 {[%clk 0:01:51.5]} 14. Nd3
{[%clk 0:02:50.1]} 14... Nxd3 {[%clk 0:01:44.4]} 15. exd3 {[%clk 0:02:50.9]}
15... Qb6 {[%clk 0:01:27.8]} 16. Nb3 {[%clk 0:02:49.6]} 16... Rac8 {[%clk
0:01:16.7]} 17. a5 {[%clk 0:02:49.8]} 17... Qc7 {[%clk 0:01:13.1]} 18. d4 {[%clk
0:02:50]} 18... Ne4 {[%clk 0:01:07.8]} 19. Nc5 {[%clk 0:02:49]} 19... Nxc5
{[%clk 0:01:07]} 20. dxc5 {[%clk 0:02:49.9]} 20... Bc6 {[%clk 0:01:05.2]} 21.
Qd2 {[%clk 0:02:47.6]} 21... Bf6 {[%clk 0:01:04.3]} 22. f4 {[%clk 0:02:48.2]}
22... g6 {[%clk 0:01:03.8]} 23. h4 {[%clk 0:02:48]} 23... Bg7 {[%clk 0:01:01]}
24. h5 {[%clk 0:02:43.4]} 24... Rcd8 {[%clk 0:01:00.2]} 25. hxg6 {[%clk
0:02:43.4]} 25... hxg6 {[%clk 0:00:59.8]} 26. Bf3 {[%clk 0:02:43.9]} 26... Rfe8
{[%clk 0:00:54.6]} 27. Kg2 {[%clk 0:02:40.8]} 27... Re7 {[%clk 0:00:37.1]} 28.
Rad1 {[%clk 0:02:39.2]} 28... Red7 {[%clk 0:00:37.1]} 29. Qf2 {[%clk 0:02:33.1]}
29... Qb7 {[%clk 0:00:32.4]} 30. Rd4 {[%clk 0:02:29.6]} 30... Bxd4 {[%clk
0:00:30.4]} 31. Qxd4 {[%clk 0:02:30.5]} 31... Re8 {[%clk 0:00:21.4]} 32. c4
{[%clk 0:02:29.3]} 32... e5 {[%clk 0:00:20.9]} 33. fxe5 {[%clk 0:02:29.6]} 33...
dxc4 {[%clk 0:00:19.9]} 34. Qh4 {[%clk 0:02:29.6]} 34... Bxf3+ {[%clk
0:00:19.6]} 35. Kg1 {[%clk 0:01:50.5]} 35... Re6 {[%clk 0:00:19]} 36. Bc1 {[%clk
0:01:48]} 36... Rd1 {[%clk 0:00:17.7]} 37. Rxd1 {[%clk 0:01:32.5]} 37... Bxd1
{[%clk 0:00:17.5]} 38. Qd8+ {[%clk 0:01:33.1]} 38... Kg7 {[%clk 0:00:17.7]} 39.
Qxd1 {[%clk 0:01:33.2]} 39... Qe4 {[%clk 0:00:17.6]} 40. Bf4 {[%clk 0:01:12.3]}
40... c3 {[%clk 0:00:17.4]} 41. Qc1 {[%clk 0:00:56.4]} 41... c2 {[%clk
0:00:17.2]} 42. Kf2 {[%clk 0:00:49.9]} 42... Qd3 {[%clk 0:00:16.6]} 43. Ke1
{[%clk 0:00:27]} 43... g5 {[%clk 0:00:16.2]} 44. Qd2 {[%clk 0:00:15.3]} 44...
Qe4+ {[%clk 0:00:14.1]} 45. Be3 {[%clk 0:00:13.6]} 45... Rxe5 {[%clk 0:00:13.2]}
46. Kf1 {[%clk 0:00:11.8]} 46... Qxe3 {[%clk 0:00:13.2]} 47. Qxc2 {[%clk
0:00:12.3]} 47... Qf3+ {[%clk 0:00:12.1]} 48. Qf2 {[%clk 0:00:11.1]} 48... Qxf2+
{[%clk 0:00:11.6]} 49. Kxf2 {[%clk 0:00:12]} 49... Re4 {[%clk 0:00:11.8]} 50. c6
{[%clk 0:00:09.9]} 50... Rxb4 {[%clk 0:00:12.4]} 51. c7 {[%clk 0:00:10.8]} 51...
Rc4 {[%clk 0:00:12.7]} 52. c8=Q {[%clk 0:00:10.2]} 52... Rxc8 {[%clk 0:00:13.2]}
0-1

[Event "*** Titled Tuesday Blitz"]
[Site "Chess.com"]
[Date "2021.04.27"]
[Round "2"]
[White "tteshan"]
[Black "Joshukid"]
[Result "0-1"]
[WhiteElo "2256"]
[BlackElo "2618"]
[TimeControl "180+1"]
[EndTime "10:18:50 PDT"]
[Termination "Joshukid won by resignation"]

1. d4 {[%clk 0:03:00.9]} 1... d5 {[%clk 0:02:57.2]} 2. c4 {[%clk 0:03:01]} 2...
e6 {[%clk 0:02:53.9]} 3. Nc3 {[%clk 0:03:01.1]} 3... a6 {[%clk 0:02:53.8]} 4.
cxd5 {[%clk 0:02:54.5]} 4... exd5 {[%clk 0:02:54.7]} 5. Bf4 {[%clk 0:02:54.6]}
5... Nf6 {[%clk 0:02:52.4]} 6. Nf3 {[%clk 0:02:54.6]} 6... c6 {[%clk 0:02:52]}
7. e3 {[%clk 0:02:54.8]} 7... Bd6 {[%clk 0:02:51.9]} 8. Ne5 {[%clk 0:02:51.2]}
8... O-O {[%clk 0:02:48.9]} 9. Bd3 {[%clk 0:02:49.2]} 9... Qe7 {[%clk
0:02:45.9]} 10. O-O {[%clk 0:02:47]} 10... Nbd7 {[%clk 0:02:45.4]} 11. Nxd7
{[%clk 0:02:33]} 11... Bxd7 {[%clk 0:02:42.7]} 12. Bxd6 {[%clk 0:02:31.5]} 12...
Qxd6 {[%clk 0:02:43.6]} 13. f3 {[%clk 0:02:17.7]} 13... Rfe8 {[%clk 0:02:41.9]}
14. Re1 {[%clk 0:02:11.1]} 14... Rad8 {[%clk 0:02:34.3]} 15. Na4 {[%clk
0:02:00.8]} 15... Bc8 {[%clk 0:02:17]} 16. Nc5 {[%clk 0:01:46.2]} 16... Nd7
{[%clk 0:02:16.2]} 17. b4 {[%clk 0:01:36.2]} 17... b6 {[%clk 0:02:10.9]} 18.
Nxd7 {[%clk 0:01:23.6]} 18... Rxd7 {[%clk 0:02:11.8]} 19. Qc2 {[%clk 0:01:16.2]}
19... Rde7 {[%clk 0:02:11.2]} 20. Bxh7+ {[%clk 0:00:57.5]} 20... Kh8 {[%clk
0:02:09.7]} 21. Bd3 {[%clk 0:00:56.1]} 21... Rxe3 {[%clk 0:01:49.1]} 22. Qf2
{[%clk 0:00:53.6]} 22... Rxe1+ {[%clk 0:01:43.8]} 23. Rxe1 {[%clk 0:00:54.5]}
23... Rxe1+ {[%clk 0:01:32.6]} 24. Qxe1 {[%clk 0:00:55.4]} 24... Qd8 {[%clk
0:01:11.8]} 25. Qe5 {[%clk 0:00:43]} 25... Kg8 {[%clk 0:00:52.7]} 26. Qb8 {[%clk
0:00:24.8]} 26... Qe8 {[%clk 0:00:45]} 27. Kf2 {[%clk 0:00:24.4]} 27... b5
{[%clk 0:00:41.1]} 28. Bf5 {[%clk 0:00:19.9]} 28... Bd7 {[%clk 0:00:38]} 29.
Qxe8+ {[%clk 0:00:19.9]} 29... Bxe8 {[%clk 0:00:38.6]} 30. Bc8 {[%clk
0:00:20.5]} 30... Kf8 {[%clk 0:00:39.3]} 31. Bxa6 {[%clk 0:00:20.1]} 31... Bd7
{[%clk 0:00:40]} 32. Ke3 {[%clk 0:00:19.2]} 32... Ke7 {[%clk 0:00:40.5]} 33. Kd3
{[%clk 0:00:10.3]} 33... Kd6 {[%clk 0:00:40.7]} 34. Kc3 {[%clk 0:00:10.3]} 34...
Kc7 {[%clk 0:00:41.3]} 35. a4 {[%clk 0:00:10.7]} 35... Kb6 {[%clk 0:00:41.1]}
36. a5+ {[%clk 0:00:06.2]} 36... Kxa6 {[%clk 0:00:40.7]} 37. Kd3 {[%clk
0:00:06.9]} 37... Bc8 {[%clk 0:00:39.4]} 38. Ke3 {[%clk 0:00:07]} 38... Kb7
{[%clk 0:00:40.1]} 39. Kf4 {[%clk 0:00:07.4]} 39... f6 {[%clk 0:00:40.3]} 40. g4
{[%clk 0:00:07.4]} 40... Kc7 {[%clk 0:00:38.6]} 41. h4 {[%clk 0:00:07.6]} 41...
Kd6 {[%clk 0:00:39.2]} 42. g5 {[%clk 0:00:07.7]} 42... Ke7 {[%clk 0:00:37.7]}
43. h5 {[%clk 0:00:02.9]} 43... Kf7 {[%clk 0:00:38.1]} 44. g6+ {[%clk 0:00:03]}
44... Ke6 {[%clk 0:00:37.1]} 45. Ke3 {[%clk 0:00:02.1]} 45... Kf5 {[%clk
0:00:36.7]} 46. h6 {[%clk 0:00:02.4]} 46... Kxg6 {[%clk 0:00:37.2]} 47. hxg7
{[%clk 0:00:02.4]} 47... Kxg7 {[%clk 0:00:37.9]} 48. Kf4 {[%clk 0:00:03]} 48...
Kg6 {[%clk 0:00:38.5]} 49. Kg3 {[%clk 0:00:03.1]} 49... Kf5 {[%clk 0:00:37.6]}
50. Kf2 {[%clk 0:00:04]} 50... Kf4 {[%clk 0:00:38.2]} 51. Ke2 {[%clk 0:00:04.7]}
51... Kg3 {[%clk 0:00:38.4]} 52. Ke3 {[%clk 0:00:05.1]} 52... f5 {[%clk
0:00:39.1]} 53. Ke2 {[%clk 0:00:03.1]} 53... f4 {[%clk 0:00:39.2]} 0-1